fUST/lending_fUST_20241226
["ID","MTS","AMOUNT","RATE_DAILY","PERIOD"]
[346642407,1735147835396,-2931.28726802,0.00010044,2]
[346642408,1735147835407,-193.5621298,0.00010119,2]
[346642410,1735147835416,-590.9361635,0.00010124,2]
[346642412,1735147835426,-250.0,0.00010277,2]
[346642414,1735147835435,-1142.64750978,0.00010824,2]
[346642415,1735147835445,-300.0,0.0001095,2]
[346642417,1735147835456,-300.0,0.0001095,2]
[346642419,1735147835465,-500.0,0.00010951,2]
[346642421,1735147835474,-500.0,0.00010951,2]
[346642423,1735147835484,-44.67061639,0.00010951,2]
[346642425,1735147835496,-455.32938361,0.00010951,2]
[346642427,1735147835506,-379.1281502,0.00010951,2]
[346642429,1735147835517,-471.5718498,0.00010951,2]
[346642431,1735147835526,-500.0,0.00010951,2]
[346642433,1735147835536,-500.0,0.00010951,2]
[346642435,1735147835546,-500.0,0.00010951,2]
[346642437,1735147835555,-500.0,0.00010951,2]
[346642438,1735147835565,-500.0,0.00010951,2]
[346642440,1735147835574,-500.0,0.00010951,2]
[346642442,1735147835584,-500.0,0.00010951,2]
[346642444,1735147835594,-500.0,0.00010951,2]
[346642446,1735147835603,-15729.4413848,0.00010952,2]
[346642448,1735147835614,-500.0,0.00011225,2]
[346642450,1735147835624,-500.0,0.00011225,2]
[346642452,1735147835634,-850.7,0.00011225,2]
[346642453,1735147835644,-500.0,0.00011225,2]
[346642455,1735147835654,-500.0,0.00011225,2]
[346642457,1735147835664,-500.0,0.00011225,2]
[346642459,1735147835674,-500.0,0.00011225,2]
[346642460,1735147835683,-500.0,0.00011225,2]
[346642462,1735147835694,-500.0,0.00011225,2]
[346642464,1735147835703,-500.0,0.00011225,2]
[346642466,1735147835713,-500.0,0.00011225,2]
[346642468,1735147835723,-352.2050668,0.00011441,2]
[346642470,1735147835733,-500.0,0.00011499,2]
[346642472,1735147835743,-850.7,0.00011499,2]
[346642474,1735147835752,-500.0,0.00011499,2]
[346642476,1735147835762,-500.0,0.00011499,2]
[346642478,1735147835771,-500.0,0.00011499,2]
[346642479,1735147835781,-500.0,0.00011499,2]
[346642481,1735147835790,-440.03,0.00011499,2]
[346642483,1735147835799,-223.5516985,0.00011499,2]
[346642545,1735147837782,-276.4483015,0.00011499,2]
[346642547,1735147837791,-500.0,0.00011499,2]
[346642549,1735147837801,-500.0,0.00011499,2]
[346642551,1735147837811,-500.0,0.00011773,2]
[346642553,1735147837820,-850.7,0.00011773,2]
[346642555,1735147837829,-500.0,0.00011773,2]
[346642557,1735147837838,-500.0,0.00011773,2]
[346642558,1735147837847,-422.88677822,0.00011773,2]
[346642560,1735147837857,-500.0,0.00011773,2]
[346642562,1735147837866,-500.0,0.00011773,2]
[346642564,1735147837875,-500.0,0.00011773,2]
[346642566,1735147837885,-482.27661,0.00011773,2]
[346642568,1735147837894,-474.13545825,0.00011794,2]
[346642570,1735147837904,-500.0,0.00011794,2]
[346642572,1735147837913,-500.0,0.00011794,2]
[346642574,1735147837923,-500.0,0.00011794,2]
[346642576,1735147837932,-212.18267324,0.00011794,2]
[346642578,1735147837941,-500.0,0.00011794,2]
[346642579,1735147837951,-500.0,0.00011794,2]
[346642581,1735147837961,-500.0,0.00011794,2]
[346642584,1735147837970,-500.0,0.00011794,2]
[346642587,1735147837980,-422.14761017,0.00011794,2]
[346642589,1735147837989,-500.0,0.00011794,2]
[346642591,1735147837998,-203.70746415,0.00011794,2]
[346642593,1735147838008,-173.94952,0.00011794,2]
[346642595,1735147838017,-500.0,0.00011794,2]
[346642597,1735147838026,-500.0,0.00011794,2]
[346642598,1735147838035,-500.0,0.00011794,2]
[346642600,1735147838045,-500.0,0.00011794,2]
[346642602,1735147838054,-500.0,0.00011794,2]
[346642604,1735147838063,-10572.45859058,0.00011795,2]
[346642606,1735147838073,-512.31880596,0.00011831,2]
[346642608,1735147838082,-500.0,0.00011831,2]
[346642610,1735147838091,-500.0,0.00011831,2]
[346642612,1735147838100,-500.0,0.00011831,2]
[346642614,1735147838109,-500.0,0.00011831,2]
[346642615,1735147838119,-500.0,0.00011831,2]
[346642617,1735147838128,-500.0,0.00011832,2]
[346642619,1735147838138,-500.0,0.00011832,2]
[346642621,1735147838147,-4616.39,0.00011832,2]
[346642623,1735147838158,-500.0,0.00011832,2]
[346642625,1735147838168,-1638.62,0.00011832,2]
[346642627,1735147838178,-1132.47,0.00011832,2]
[346642629,1735147838188,-500.0,0.00011832,2]
[346642631,1735147838197,-500.0,0.00011832,2]
[346642633,1735147838207,-596.78,0.00011832,2]
[346642635,1735147838217,-500.0,0.00011832,2]
[346642636,1735147838227,-500.0,0.00011832,2]
[346642638,1735147838237,-500.0,0.00011832,2]
[346642640,1735147838246,-500.0,0.00011832,2]
[346642642,1735147838256,-865.95,0.00011832,2]
[346642643,1735147838265,-500.0,0.00011832,2]
[346642644,1735147838274,-504.44969084,0.00011832,2]
[346642645,1735147838284,-500.0,0.00011832,2]
[346642646,1735147838293,-500.0,0.00011832,2]
[346642647,1735147838303,-500.0,0.00011832,2]
[346642648,1735147838312,-500.0,0.00011832,2]
[346642649,1735147838321,-500.0,0.00011832,2]
[346642650,1735147838330,-500.0,0.00011832,2]
[346642651,1735147838339,-500.0,0.00011832,2]
[346642652,1735147838348,-500.0,0.00011832,2]
[346642653,1735147838357,-500.0,0.00011832,2]
[346642654,1735147838371,-500.0,0.00011832,2]
[346642655,1735147838380,-500.0,0.00011832,2]
[346642656,1735147838390,-767.6,0.00011832,2]
[346642657,1735147838404,-500.0,0.00011832,2]
[346642658,1735147838413,-500.0,0.00011832,2]
[346642659,1735147838423,-500.0,0.00011832,2]
[346642660,1735147838431,-504.2,0.00011832,2]
[346642661,1735147838445,-500.0,0.00011832,2]
[346642662,1735147838558,-500.0,0.00011832,2]
[346642663,1735147838574,-582.97,0.00011832,2]
[346642664,1735147838583,-420.0,0.00012033,2]
[346642665,1735147838594,-420.0,0.00012045,2]
[346642666,1735147838603,-500.0,0.00012047,2]
[346642668,1735147838613,-850.7,0.00012047,2]
[346642669,1735147838623,-500.0,0.00012047,2]
[346642671,1735147838632,-500.0,0.00012047,2]
[346642672,1735147838641,-500.0,0.00012047,2]
[346642674,1735147838651,-500.0,0.00012047,2]
[346642676,1735147838660,-341.6,0.00012047,2]
[346642678,1735147838670,-706.98673093,0.00012105,2]
[346642680,1735147838680,-500.0,0.00012105,2]
[346642682,1735147838690,-500.0,0.00012105,2]
[346642684,1735147838699,-500.0,0.00012105,2]
[346642686,1735147838708,-500.0,0.00012105,2]
[346642688,1735147838717,-500.0,0.00012105,2]
[346642690,1735147838727,-500.0,0.00012106,2]
[346642692,1735147838736,-4616.39,0.00012106,2]
[346642694,1735147838746,-500.0,0.00012106,2]
[346642696,1735147838755,-1638.62,0.00012106,2]
[346642698,1735147838764,-1132.47,0.00012106,2]
[346642700,1735147838774,-500.0,0.00012106,2]
[346642702,1735147838783,-500.0,0.00012106,2]
[346642704,1735147838792,-596.78,0.00012106,2]
[346642706,1735147838802,-500.0,0.00012106,2]
[346642708,1735147838811,-500.0,0.00012106,2]
[346642710,1735147838820,-865.95,0.00012106,2]
[346642712,1735147838830,-481.55197837,0.00012106,2]
[346642714,1735147838840,-500.0,0.00012106,2]
[346642716,1735147838849,-500.0,0.00012106,2]
[346642718,1735147838858,-500.0,0.00012106,2]
[346642720,1735147838867,-500.0,0.00012106,2]
[346642722,1735147838875,-500.0,0.00012106,2]
[346642724,1735147838885,-500.0,0.00012106,2]
[346642726,1735147838895,-500.0,0.00012106,2]
[346642728,1735147838904,-500.0,0.00012106,2]
[346642730,1735147838913,-500.0,0.00012106,2]
[346642732,1735147838922,-500.0,0.00012106,2]
[346642734,1735147838931,-500.0,0.00012106,2]
[346642736,1735147838940,-767.6,0.00012106,2]
[346642738,1735147838950,-500.0,0.00012106,2]
[346642740,1735147838959,-500.0,0.00012106,2]
[346642742,1735147838968,-500.0,0.00012106,2]
[346642744,1735147838977,-504.2,0.00012106,2]
[346642745,1735147838986,-500.0,0.00012106,2]
[346642747,1735147838996,-500.0,0.00012106,2]
[346642748,1735147839005,-582.97,0.00012106,2]
[346642749,1735147839015,-491.89404908,0.00012165,2]
[346642750,1735147839024,-194.57262283,0.00012264,2]
[346642751,1735147839034,-500.0,0.00012264,2]
[346642752,1735147839044,-500.0,0.00012264,2]
[346642753,1735147839053,-500.0,0.00012265,2]
[346642754,1735147839063,-500.0,0.00012265,2]
[346642755,1735147839073,-500.0,0.00012265,2]
[346642756,1735147839083,-558.34878525,0.00012265,2]
[346642757,1735147839092,-500.0,0.00012265,2]
[346642758,1735147839102,-500.0,0.00012265,2]
[346642759,1735147839112,-500.0,0.00012265,2]
[346642760,1735147839121,-500.0,0.00012265,2]
[346642761,1735147839130,-500.0,0.00012265,2]
[346642762,1735147839140,-500.0,0.00012265,2]
[346642763,1735147839149,-500.0,0.00012265,2]
[346642764,1735147839158,-500.0,0.00012265,2]
[346642765,1735147839168,-168.0,0.00012265,2]
[346642766,1735147839178,-536.7,0.00012265,2]
[346642767,1735147839187,-500.0,0.00012265,2]
[346642768,1735147839196,-500.0,0.00012265,2]
[346642769,1735147839205,-505.65591794,0.00012265,2]
[346642770,1735147839215,-500.0,0.00012265,2]
[346642771,1735147839224,-500.0,0.00012265,2]
[346642772,1735147839233,-500.0,0.00012265,2]
[346642773,1735147839243,-500.0,0.00012265,2]
[346642774,1735147839253,-500.0,0.00012265,2]
[346642775,1735147839263,-500.0,0.00012265,2]
[346642776,1735147839273,-500.0,0.00012265,2]
[346642777,1735147839283,-500.0,0.00012265,2]
[346642778,1735147839292,-500.0,0.00012265,2]
[346642779,1735147839302,-500.0,0.00012265,2]
[346642780,1735147839312,-500.0,0.00012265,2]
[346642781,1735147839321,-304.34378273,0.00012265,2]
[346642782,1735147839348,-195.65621727,0.00012265,2]
[346642783,1735147839359,-500.0,0.00012265,2]
[346642784,1735147839372,-500.0,0.00012265,2]
[346642785,1735147839382,-500.0,0.00012265,2]
[346642786,1735147839392,-500.0,0.00012265,2]
[346642787,1735147839402,-500.0,0.00012265,2]
[346642788,1735147839413,-81.85467298,0.00012265,2]
[346642789,1735147839425,-418.14532702,0.00012265,2]
[346642790,1735147839435,-500.0,0.00012265,2]
[346642791,1735147839447,-500.0,0.00012265,2]
[346642792,1735147839458,-500.0,0.00012265,2]
[346642794,1735147839468,-500.0,0.00012265,2]
[346642795,1735147839477,-501.34796684,0.00012265,2]
[346642796,1735147839487,-443.00670617,0.00012265,2]
[346642797,1735147839499,-56.99329383,0.00012265,2]
[346642798,1735147839508,-500.0,0.00012265,2]
[346642799,1735147839518,-500.0,0.00012265,2]
[346642800,1735147839528,-500.0,0.00012265,2]
[346642801,1735147839539,-500.0,0.00012265,2]
[346642802,1735147839548,-241.55418724,0.00012265,2]
[346642803,1735147839557,-500.0,0.00012265,2]
[346642804,1735147839566,-509.90282238,0.00012265,2]
[346642805,1735147839575,-500.0,0.00012265,2]
[346642806,1735147839585,-500.0,0.00012265,2]
[346642807,1735147839594,-500.0,0.00012265,2]
[346642808,1735147839603,-500.0,0.00012265,2]
[346642809,1735147839612,-500.0,0.00012265,2]
[346642810,1735147839622,-500.0,0.00012265,2]
[346642811,1735147839632,-501.91,0.00012265,2]
[346642812,1735147839642,-500.0,0.00012265,2]
[346642813,1735147839652,-500.0,0.00012265,2]
[346642814,1735147839661,-500.0,0.00012265,2]
[346642815,1735147839671,-500.0,0.00012265,2]
[346642816,1735147839681,-500.0,0.00012265,2]
[346642818,1735147839690,-500.0,0.00012265,2]
[346642819,1735147839700,-500.0,0.00012265,2]
[346642820,1735147839709,-500.0,0.00012265,2]
[346642821,1735147839719,-500.0,0.00012265,2]
[346642822,1735147839728,-500.0,0.00012265,2]
[346642823,1735147839737,-500.0,0.00012265,2]
[346642824,1735147839748,-500.0,0.00012265,2]
[346642825,1735147839758,-500.0,0.00012265,2]
[346642826,1735147839768,-500.0,0.00012265,2]
[346642827,1735147839777,-595.40184192,0.00012265,2]
[346642828,1735147839786,-500.0,0.00012265,2]
[346642829,1735147839796,-512.02178123,0.00012265,2]
[346642831,1735147839805,-500.0,0.00012265,2]
[346642833,1735147839815,-500.0,0.00012265,2]
[346642835,1735147839824,-500.0,0.00012265,2]
[346642836,1735147839834,-500.0,0.00012265,2]
[346642837,1735147839843,-500.0,0.00012265,2]
[346642838,1735147839853,-500.0,0.00012265,2]
[346642839,1735147839863,-500.0,0.00012265,2]
[346642841,1735147839872,-500.0,0.00012265,2]
[346642843,1735147839881,-506.12473125,0.00012265,2]
[346642845,1735147839891,-500.0,0.00012265,2]
[346642847,1735147839900,-500.0,0.00012265,2]
[346642849,1735147839910,-501.13515544,0.00012265,2]
[346642851,1735147839919,-501.77164127,0.00012265,2]
[346642853,1735147839928,-500.0,0.00012265,2]
[346642855,1735147839938,-500.0,0.00012265,2]
[346642857,1735147839947,-500.0,0.00012265,2]
[346642859,1735147839956,-500.0,0.00012265,2]
[346642861,1735147839966,-2625.06,0.00012265,2]
[346642863,1735147839975,-500.0,0.00012265,2]
[346642865,1735147839984,-500.0,0.00012265,2]
[346642867,1735147839994,-563.23,0.00012265,2]
[346642869,1735147840003,-5497.50473047,0.00012265,2]
[346642902,1735147840294,-500.0,0.00011831,2]
[346642904,1735147840303,-500.0,0.00012105,2]
[346642906,1735147840312,-5374.89526953,0.00012265,2]
[346642908,1735147840322,-500.0,0.00012265,2]
[346642910,1735147840331,-500.0,0.00012265,2]
[346642912,1735147840340,-500.0,0.00012265,2]
[346642914,1735147840349,-500.0,0.00012265,2]
[346642916,1735147840359,-500.0,0.00012265,2]
[346642918,1735147840373,-500.0,0.00012265,2]
[346642920,1735147840382,-500.0,0.00012265,2]
[346642922,1735147840391,-500.0,0.00012265,2]
[346642924,1735147840401,-500.0,0.00012265,2]
[346642926,1735147840413,-500.0,0.00012265,2]
[346642928,1735147840422,-500.0,0.00012265,2]
[346642930,1735147840432,-500.0,0.00012265,2]
[346642932,1735147840441,-500.0,0.00012265,2]
[346642934,1735147840451,-500.0,0.00012265,2]
[346642936,1735147840461,-500.0,0.00012265,2]
[346642938,1735147840471,-500.0,0.00012265,2]
[346642940,1735147840480,-626.10039727,0.00012265,2]
[346642942,1735147840489,-500.0,0.00012266,2]
[346642944,1735147840499,-500.0,0.00012266,2]
[346642946,1735147840508,-501.66379496,0.00012266,2]
[346642948,1735147840516,-500.0,0.00012266,2]
[346642950,1735147840525,-500.0,0.00012266,2]
[346642952,1735147840535,-502.27938855,0.00012266,2]
[346642954,1735147840544,-500.0,0.00012266,2]
[346642956,1735147840554,-500.0,0.00012266,2]
[346642958,1735147840563,-589.55573389,0.00012266,2]
[346642960,1735147840573,-500.0,0.00012266,2]
[346642962,1735147840582,-501.52216722,0.00012266,2]
[346642964,1735147840591,-503.83985086,0.00012266,2]
[346642966,1735147840600,-501.83248865,0.00012266,2]
[346642968,1735147840610,-502.07812151,0.00012266,2]
[346642970,1735147840619,-500.0,0.00012266,2]
[346642972,1735147840628,-501.36137115,0.00012266,2]
[346642974,1735147840637,-501.83827515,0.00012266,2]
[346642976,1735147840646,-500.0,0.00012266,2]
[346642978,1735147840656,-502.77938842,0.00012266,2]
[346642980,1735147840665,-503.49312441,0.00012266,2]
[346642982,1735147840675,-500.0,0.00012266,2]
[346642984,1735147840684,-500.0,0.00012266,2]
[346642987,1735147840697,-504.41127704,0.00012266,2]
[346642989,1735147840706,-500.0,0.00012266,2]
[346642991,1735147840716,-500.0,0.00012266,2]
[346642993,1735147840726,-504.40340513,0.00012266,2]
[346642995,1735147840736,-500.0,0.00012266,2]
[346642997,1735147840746,-500.0,0.00012266,2]
[346642999,1735147840755,-502.75623695,0.00012266,2]
[346643001,1735147840764,-500.0,0.00012266,2]
[346643003,1735147840774,-119.31636144,0.00012266,2]
[346643005,1735147840786,-380.68363856,0.00012266,2]
[346643007,1735147840796,-494.54908773,0.00012266,2]
[346643009,1735147840806,-500.0,0.00012266,2]
[346643011,1735147840815,-500.0,0.00012266,2]
[346643023,1735147840918,-500.0,0.00012266,2]
[346643025,1735147840927,-500.0,0.00012266,2]
[346643027,1735147840937,-500.0,0.00012266,2]
[346643029,1735147840947,-500.0,0.00012266,2]
[346643031,1735147840956,-502.13145983,0.00012266,2]
[346643033,1735147840965,-500.0,0.00012266,2]
[346643035,1735147840975,-501.68121836,0.00012266,2]
[346643037,1735147840984,-500.0,0.00012266,2]
[346643039,1735147840993,-500.0,0.00012266,2]
[346643041,1735147841002,-500.0,0.00012266,2]
[346643043,1735147841012,-500.0,0.00012266,2]
[346643045,1735147841021,-500.0,0.00012266,2]
[346643047,1735147841030,-500.0,0.00012266,2]
[346643049,1735147841039,-500.0,0.00012266,2]
[346643051,1735147841049,-500.0,0.00012266,2]
[346643053,1735147841059,-500.0,0.00012266,2]
[346643055,1735147841068,-500.0,0.00012266,2]
[346643058,1735147841078,-501.14219141,0.00012266,2]
[346643060,1735147841087,-500.0,0.00012266,4]
[346643062,1735147841097,-500.0,0.00012266,2]
[346643064,1735147841106,-500.0,0.00012266,2]
[346643065,1735147841116,-500.0,0.00012266,2]
[346643067,1735147841125,-500.0,0.00012266,2]
[346643069,1735147841134,-500.0,0.00012266,2]
[346643071,1735147841144,-500.0,0.00012266,2]
[346643073,1735147841153,-500.0,0.00012266,2]
[346643076,1735147841164,-500.41316086,0.00012266,2]
[346643077,1735147841175,-500.51047012,0.00012266,2]
[346643080,1735147841184,-500.0,0.00012266,2]
[346643082,1735147841194,-500.0,0.00012266,2]
[346643083,1735147841203,-500.0,0.00012266,2]
[346643085,1735147841212,-500.0,0.00012266,2]
[346643088,1735147841221,-567.89376908,0.00012266,2]
[346643089,1735147841230,-500.63681276,0.00012266,2]
[346643092,1735147841239,-500.0,0.00012266,2]
[346643094,1735147841249,-500.0,0.00012266,2]
[346643096,1735147841258,-500.0,0.00012266,2]
[346643098,1735147841267,-500.0,0.00012266,2]
[346643100,1735147841278,-581.7887947,0.00012266,2]
[346643102,1735147841289,-500.47674536,0.00012266,2]
[346643104,1735147841298,-500.0,0.00012266,2]
[346643106,1735147841309,-500.0,0.00012266,2]
[346643108,1735147841318,-500.0,0.00012266,2]
[346643110,1735147841327,-644.91194497,0.00012266,2]
[346643112,1735147841336,-573.66739059,0.00012266,2]
[346643114,1735147841345,-500.0,0.00012266,2]
[346643116,1735147841354,-501.17921644,0.00012266,2]
[346643118,1735147841368,-347.79723069,0.00012266,2]
[346643120,1735147841377,-500.0,0.00012266,2]
[346643122,1735147841386,-501.28018746,0.00012266,2]
[346643124,1735147841396,-500.0,0.00012266,2]
[346643125,1735147841406,-502.42405366,0.00012266,2]
[346643128,1735147841417,-515.6293879,0.00012266,2]
[346643130,1735147841427,-500.0,0.00012266,2]
[346643132,1735147841436,-500.0,0.00012266,2]
[346643134,1735147841447,-500.0,0.00012266,2]
[346643136,1735147841457,-500.0,0.00012266,2]
[346643137,1735147841466,-502.24087025,0.00012266,2]
[346643140,1735147841476,-500.0,0.00012266,2]
[346643142,1735147841485,-203.16154986,0.00012266,2]
[346643144,1735147841495,-500.0,0.00012266,2]
[346643146,1735147841504,-500.0,0.00012266,2]
[346643148,1735147841514,-500.0,0.00012266,2]
[346643150,1735147841523,-500.0,0.00012266,2]
[346643152,1735147841534,-500.0,0.00012266,2]
[346643154,1735147841543,-500.0,0.00012266,2]
[346643156,1735147841553,-500.0,0.00012266,2]
[346643158,1735147841563,-500.0,0.00012266,2]
[346643160,1735147841573,-435.44269646,0.00012266,2]
[346643162,1735147841583,-500.0,0.00012266,2]
[346643164,1735147841592,-611.47196186,0.00012266,2]
[346643166,1735147841602,-500.0,0.00012266,2]
[346643168,1735147841611,-500.0,0.00012266,2]
[346643170,1735147841620,-500.0,0.00012266,2]
[346643172,1735147841630,-500.0,0.00012266,2]
[346643174,1735147841639,-500.0,0.00012266,2]
[346643176,1735147841648,-500.0,0.00012266,2]
[346643178,1735147841659,-500.78778969,0.00012266,2]
[346643180,1735147841668,-500.0,0.00012266,2]
[346643182,1735147841678,-500.0,0.00012266,2]
[346643184,1735147841688,-500.0,0.00012266,2]
[346643186,1735147841698,-503.13911303,0.00012266,2]
[346643188,1735147841708,-500.0,0.00012266,2]
[346643190,1735147841717,-500.0,0.00012266,2]
[346643192,1735147841725,-500.0,0.00012266,2]
[346643194,1735147841735,-500.0,0.00012266,2]
[346643196,1735147841744,-334.14173577,0.00012266,2]
[346643198,1735147841756,-503.92841909,0.00012266,2]
[346643200,1735147841766,-500.0,0.00012266,2]
[346643202,1735147841775,-500.0,0.00012266,2]
[346643204,1735147841784,-500.0,0.00012266,2]
[346643206,1735147841793,-500.0,0.00012266,2]
[346643208,1735147841802,-500.0,0.00012266,2]
[346643210,1735147841811,-154.0502,0.00012266,2]
[346643212,1735147841820,-506.3707603,0.00012266,2]
[346643214,1735147841830,-500.0,0.00012266,2]
[346643216,1735147841839,-502.58542783,0.00012266,2]
[346643218,1735147841848,-491.19792382,0.00012266,2]
[346643220,1735147841858,-500.0,0.00012266,2]
[346643222,1735147841867,-500.0,0.00012266,2]
[346643224,1735147841876,-500.0,0.00012266,2]
[346643226,1735147841885,-500.0,0.00012266,2]
[346643228,1735147841895,-500.0,0.00012266,2]
[346643230,1735147841904,-500.0,0.00012266,2]
[346643232,1735147841913,-500.0,0.00012266,2]
[346643234,1735147841924,-500.0,0.00012266,2]
[346643236,1735147841934,-1881.89,0.00012266,2]
[346643238,1735147841943,-500.0,0.00012266,2]
[346643240,1735147841953,-500.0,0.00012266,2]
[346643242,1735147841962,-227.48740892,0.00012266,2]
[346643244,1735147841971,-500.0,0.00012266,2]
[346643246,1735147841983,-502.1947248,0.00012266,2]
[346643248,1735147841992,-500.0,0.00012266,2]
[346643250,1735147842001,-529.47923471,0.00012266,2]
[346643252,1735147842010,-500.0,0.00012266,2]
[346643254,1735147842021,-500.0,0.00012266,2]
[346643256,1735147842030,-500.0,0.00012266,2]
[346643258,1735147842040,-500.0,0.00012266,2]
[346643260,1735147842049,-500.0,0.00012266,2]
[346643262,1735147842059,-500.0,0.00012266,2]
[346643264,1735147842069,-500.0,0.00012266,2]
[346643266,1735147842079,-301.97387237,0.00012266,2]
[346643268,1735147842088,-500.0,0.00012266,2]
[346643270,1735147842097,-500.0,0.00012266,2]
[346643272,1735147842107,-500.0,0.00012266,2]
[346643274,1735147842116,-500.0,0.00012266,2]
[346643276,1735147842125,-242.34728855,0.00012266,2]
[346643402,1735147843089,-257.65271145,0.00012266,2]
[346643404,1735147843098,-500.0,0.00012266,2]
[346643407,1735147843108,-500.0,0.00012266,2]
[346643408,1735147843117,-500.0,0.00012266,2]
[346643410,1735147843127,-500.0,0.00012266,2]
[346643412,1735147843137,-500.0,0.00012266,2]
[346643414,1735147843146,-500.0,0.00012266,2]
[346643416,1735147843155,-500.0,0.00012267,2]
[346643418,1735147843165,-500.0,0.00012267,2]
[346643420,1735147843175,-500.0,0.00012267,2]
[346643422,1735147843184,-500.0,0.00012267,2]
[346643424,1735147843193,-500.0,0.00012267,2]
[346643426,1735147843203,-500.0,0.00012267,2]
[346643428,1735147843212,-82.98973793,0.00012267,2]
[346643883,1735148028594,1244.97454019,0.00010169,2]
[346643884,1735148028620,296.91463387,0.00010169,2]
[346643885,1735148103633,10067.1945771,0.0001,2]
[346643886,1735148514214,3927.923281,9.95e-05,2]
[346643888,1735148710233,894.40109171,9.966e-05,2]
[346643889,1735148871401,1000.0,0.00012,12]
[346643890,1735148890376,894.40109171,9.966e-05,2]
[346643891,1735148909051,1000.0,0.00023,120]
[346643894,1735148968048,1000.0,0.0002,90]
[346643916,1735149032226,-6087.86191264,0.00010169,2]
[346643917,1735149032392,-2370.2489133,0.00010169,2]
[346643918,1735149032403,-393.51523924,0.00010849,2]
[346643919,1735149032412,-300.0,0.00010946,2]
[346643920,1735149032422,-300.0,0.00010946,2]
[346643921,1735149032433,-500.0,0.00010947,2]
[346643922,1735149032442,-466.63908839,0.00010947,2]
[346643952,1735149038181,-33.36091161,0.00010947,2]
[346643953,1735149038191,-673.47,0.00010947,2]
[346643954,1735149038200,-500.0,0.00010947,2]
[346643955,1735149038209,-500.0,0.00010947,2]
[346643956,1735149038218,-500.0,0.00010947,2]
[346643957,1735149038228,-500.0,0.00010947,2]
[346643958,1735149038237,-500.0,0.00010947,2]
[346643959,1735149038247,-500.0,0.00010947,2]
[346643960,1735149038256,-500.0,0.00010947,2]
[346643961,1735149038265,-500.0,0.00010947,2]
[346643962,1735149038274,-500.0,0.00010947,2]
[346643963,1735149038283,-500.0,0.00010947,2]
[346643964,1735149038292,-385.0,0.00010947,2]
[346643965,1735149038301,-500.0,0.00010947,2]
[346643966,1735149038311,-500.0,0.00010947,2]
[346643967,1735149038323,-500.0,0.00010947,2]
[346643968,1735149038332,-500.0,0.00010947,2]
[346643969,1735149038343,-500.0,0.00010947,2]
[346643970,1735149038352,-500.0,0.00010947,2]
[346643971,1735149038361,-258.26389841,0.00010947,2]
[346643972,1735149038370,-500.0,0.00010947,2]
[346643973,1735149038380,-500.0,0.00010947,2]
[346643974,1735149038389,-500.0,0.00010947,2]
[346643975,1735149038399,-284.77796861,0.00010947,2]
[346643976,1735149038409,-500.0,0.00010947,2]
[346643977,1735149038418,-500.0,0.00010947,2]
[346643978,1735149038428,-500.0,0.00010947,2]